Cogmind - Beta 16.1 *** ADVENTURER MODE // 2026.02.13 @ 20:03:02 Player: seeker Result: Destroyed by AV-QD3(j) with Overtuned Pulse Rifle Performance ------------- Evolutions (0) 0 Regions Visited (3) 600 Robots Destroyed (15) 75 Value Destroyed (451) 451 Prototype IDs (2) 40 Alien Tech Used (0) 0 Bonus (782) 782 TOTAL SCORE: 1948 Bonus ------- Registered with UFD 300 Met Optimus in HQ 500 Friendly Fire -18 Cogmind --------- Core Integrity 0/250 Matter 196/300 Energy 290/290 System Corruption 0% Temperature Warm (125) Movement Walking (330) Ox3 Location -7/Scraptown Parts ------- > --- POWER (1) -------- Improved Deuterium Engine > --- PROPULSION (2) --- Overtuned Titanium Leg Makeshift Leg > --- UTILITY (2) ------ Cargo Storage Unit > --- WEAPON (2) ------- Overtuned Barrage Gun Grenade Launcher > --- INVENTORY (30) --- Light Ion Engine Light Nuclear Core Aluminum Leg Overtuned Titanium Leg Scrap Suit Heat Sink Large Storage Unit High-capacity Storage Unit Large Battery (200) Visual Processing Unit Subdweller Optics Advanced ECM Suite Scrap Shield Drone Bay (2/2) Datajack CPS Tube (2) Scrap Shield Fragment (48) Scrap Shield Fragment (47) Peak State ------------ > --- POWER ------------ Improved Deuterium Engine > --- PROPULSION ------- Overtuned Titanium Leg Makeshift Leg > --- UTILITY ---------- Cargo Storage Unit > --- WEAPON ----------- Subdweller Machine Gun Overtuned Barrage Gun > --- INVENTORY -------- Light Ion Engine Aluminum Leg Scrap Suit Heat Sink Large Storage Unit High-capacity Storage Unit Large Battery Visual Processing Unit Subdweller Optics Advanced ECM Suite Scrap Shield Drone Bay Grenade Launcher Datajack CPS Tube Scrap Shield Fragment Scrap Shield Fragment [Rating: 22] Favorites ----------- Power Light Ion Engine Engine Light Ion Engine Propulsion Aluminum Leg Leg Aluminum Leg Utility Cargo Storage Unit Storage Cargo Storage Unit Processor Targeting Computer Weapon Grenade Launcher Energy Gun Small Laser Energy Cannon Subdweller Beam Cannon Ballistic Gun Light Assault Rifle Launcher Grenade Launcher Special Weapon CPS Tube Build | -11 -10 -10 -7 ------- Run | Yrd Mat Sub Scr Slots Evolved . | . . . . Power . | . . . . Propulsion . | . . . . Utility . | . . . . Weapon . | . . . . Parts Attached 19 | 6 3 2 8 Power 3 | 1 . 1 1 Engine 3 | 1 . 1 1 Core . | . . . . Reactor . | . . . . Propulsion 5 | 2 . . 3 Treads . | . . . . Leg 5 | 2 . . 3 Wheel . | . . . . Hover . | . . . . Flight . | . . . . Utility 3 | 1 2 . . Device . | . . . . Storage 2 | 1 1 . . Processor 1 | . 1 . . Hackware . | . . . . Protection . | . . . . Artifact . | . . . . Weapon 8 | 2 1 1 4 Energy Gun 1 | 1 . . . Energy Cannon 1 | . . . 1 Ballistic Gun 3 | 1 . . 2 Ballistic Cannon . | . . . . Launcher 2 | . 1 1 . Special Weapon 1 | . . . 1 Impact Weapon . | . . . . Slashing Weapon . | . . . . Piercing Weapon . | . . . . Special Melee Weapon . | . . . . Unidentified Prototypes . | . . . . Parts Lost 2 | . . 1 1 Power 1 | . . 1 . Propulsion . | . . . . Utility . | . . . . Weapon 1 | . . . 1 Highest Loss Streak 1 | . . 1 1 To Critical Strikes . | . . . . Average Backups 21 | 1 10 17 23 Power 2 | . 1 2 1 Propulsion 2 | . . 1 2 Utility 9 | . 4 8 10 Weapon 6 | . 3 5 7 Tool/Special . | . . . . Unused Backups 23 | . 1 . 22 Power 2 | . . . 2 Propulsion 2 | . 1 . 1 Utility 14 | . . . 14 Weapon 2 | . . . 2 Tool/Special 3 | . . . 3 Average Slot Usage (%) 63 | . 64 72 61 Engine 13 | . 14 13 14 Leg 27 | . 28 28 27 Storage 14 | . 14 14 14 Ballistic Gun 1 | . 2 6 . Launcher 2 | . 2 8 1 Special Weapon 1 | . . . 2 Peak Build Rating 22 | 6 7 11 22 Average Rating 9 | 3 6 9 10 On Entrance 5 | . 6 7 10 Avg Prop Armor Cover (%) . | . . . . Naked Turns . | . . . . Heaviest Build 157 | 10 146 147 157 Greatest Support 39 | 20 20 20 39 Greatest Overweight (x) 7 | . 7 7 7 Average Overweight (x) 6 | . 4 7 6 Largest Inventory Capacity 30 | 8 30 30 30 Average Capacity 29 | 6 26 30 30 Most Carried 30 | 5 12 30 30 Average Carried 27 | 1 10 22 29 Final Capacity 30 | 8 30 30 30 Final Carried 29 | 1 11 29 29 Class Distribution -------------------- 99% | Hauler-Mutant Dominant Class ---------------- Hauler-Mutant | -10/Materials Hauler-Mutant | -10/Subcaves Hauler-Mutant | -7/Scraptown Resources | -11 -10 -10 -7 ----------- Run | Yrd Mat Sub Scr Matter Collected 569 | 260 20 174 115 Remotely . | . . . . Salvage Created 525 | . 61 289 175 Parts 35 | . 6 22 7 Haulers Intercepted . | . . . . Recyclers Shooed . | . . . . Parts Field Recycled . | . . . . Retrieved Matter . | . . . . Parts Self-Destructed 10 | . . 10 . Prevented . | . . . . Parts Restored . | . . . . Kills | -11 -10 -10 -7 ------- Run | Yrd Mat Sub Scr Combat Hostiles Destroyed 13 | . 3 6 4 Guns 6 | . . 3 3 AOE 7 | . 3 3 1 Classes Destroyed 6 | . 2 1 3 Builder 2 | . 2 . . Swarmer 3 | . 3 . . Subdweller 6 | . . 6 . Federalist 1 | . . . 1 Explorer 2 | . . . 2 Scrapper 1 | . . . 1 Best Kill Streak 5 | . 5 2 2 Combat Bots Only 3 | . 3 2 2 Max Kills in Single Turn 2 | . 2 2 1 Gunslinging . | . . . . Exploded 2 | . 2 2 1 Melee . | . . . . Uniques/NPCs Destroyed . | . . . . Combat | -11 -10 -10 -7 -------- Run | Yrd Mat Sub Scr Hostile Shots Fired 73 | . 10 33 30 Missed 20 | . 3 9 8 Hits 53 | . 7 24 22 Projectile 53 | . 7 24 22 Critical Strikes 4 | . . 1 3 Damage Taken 885 | . 34 513 338 Core 257 | . 4 169 84 Absorbed by Shields . | . . . . Ignored by Resistances 250 | . 14 143 93 Core Remaining (%) 100 | 100 . . . Volleys Fired 46 | . 4 29 13 Largest 2 | . 1 2 2 Hottest 60 | . 30 50 60 Shots Fired 54 | . 4 30 20 Gun 42 | . . 24 18 Cannon . | . . . . Launcher 12 | . 4 6 2 Special . | . . . . Kinetic 41 | . . 23 18 Thermal 1 | . . 1 . Explosive 12 | . 4 6 2 Electromagnetic . | . . . . Robot Hit Streak 19 | . 1 19 8 Robot Miss Streak 2 | . 2 1 2 Penetration Max . | . . . . Secondary Targets . | . . . . Shots Hit Robots 36 | . 2 22 12 Core Hits 26 | . 7 10 9 Critical Kills . | . . . . Critical Parts Destroyed . | . . . . Critical Strikes . | . . . . Melee Attacks . | . . . . Impact . | . . . . Slashing . | . . . . Piercing . | . . . . Sneak Attacks . | . . . . Combat Hostiles . | . . . . Follow-up Attacks . | . . . . Damage Inflicted 981 | . 289 377 315 Guns 364 | . . 133 231 Cannons . | . . . . Explosions 617 | . 289 244 84 Melee . | . . . . Ramming . | . . . . Kinetic 364 | . . 133 231 Thermal . | . . . . Explosive 617 | . 289 244 84 Electromagnetic . | . . . . Impact . | . . . . Slashing . | . . . . Piercing . | . . . . Highest Corruption . | . . . . Average Corruption . | . . . . Corruption Purged . | . . . . Corruption Blocked . | . . . . Overload Shots . | . . . . Overflow Damage 53 | . 44 9 . Projectiles . | . . . . Explosions 53 | . 44 9 . Melee . | . . . . Knockbacks . | . . . . Impact . | . . . . Kinetic . | . . . . Secondary . | . . . . Self-Inflicted Damage 52 | . . 52 . Shots 3 | . . 3 . Rammed . | . . . . Targets Rammed . | . . . . Kicked . | . . . . Crushed . | . . . . Highest Temperature 229 | . . 229 113 Average Temperature 58 | . . 128 43 Received Heat Transfer 681 | . . 366 315 Siege Activations . | . . . . Martial Activations . | . . . . Shielding Activations . | . . . . Robots Disrupted . | . . . . Combat Hostiles . | . . . . Robots Corrupted . | . . . . Combat Hostiles . | . . . . Parts Fried . | . . . . Impact Corruptions . | . . . . Robots Melted . | . . . . Combat Hostiles . | . . . . Parts Melted 1 | . . 1 . Heat Transferred . | . . . . Parts Sabotaged . | . . . . Parts Stolen . | . . . . Parts Stripped . | . . . . Power Chain Reactions . | . . . . Alert | -11 -10 -10 -7 ------- Run | Yrd Mat Sub Scr Maximum Alert Level . | . . . . Low Security (%) 100 | 100 100 . . Level 1 . | . . . . Level 2 . | . . . . Level 3 . | . . . . Level 4 . | . . . . Level 5 . | . . . . High Security . | . . . . Max Security . | . . . . Peak Influence 107 | . 107 . . Initial . | . . . . Average 12 | . 13 . . Influence Increases 121 | . 121 . . Destroy 0b10 Robot/C 60 | . 60 . . Destroy 0b10 Robot/NC 10 | . 10 . . Destroy Leader 10 | . 10 . . Successful Hack 4 | . 4 . . Disable Machine 9 | . 9 . . Destroy Structure 28 | . 28 . . Influence Decreases 121 | . 54 67 . Entered New Map 37 | . . 37 . Time Decay 84 | . 54 30 . Squads Dispatched . | . . . . Investigation . | . . . . Extermination . | . . . . Reinforcement . | . . . . Assault . | . . . . Garrison . | . . . . Intercept . | . . . . Searches Triggered . | . . . . Construction Impeded . | . . . . Haulers Reinforced . | . . . . Active Scanning Responses . | . . . . Cargo Convoy Interrupts . | . . . . Stealth | -11 -10 -10 -7 --------- Run | Yrd Mat Sub Scr Distress Signals . | . . . . Communications Jammed . | . . . . Distress Signals . | . . . . Times Spotted 18 | . 4 7 7 Peak Tracking Total 3 | . 3 2 3 Tactical Retreats . | . . . . Traps | -11 -10 -10 -7 ------- Run | Yrd Mat Sub Scr Traps Triggered . | . . . . Indirectly . | . . . . Trap Hack Attempts . | . . . . Triggered . | . . . . Disarmed . | . . . . Reprogrammed . | . . . . Reused . | . . . . Traps Extracted . | . . . . Installed . | . . . . Triggered . | . . . . Machines | -11 -10 -10 -7 ---------- Run | Yrd Mat Sub Scr Machines Disabled 2 | . 1 . 1 Max in Single Turn 1 | . 1 . 1 Machines Repaired . | . . . . Machines Dismantled . | . . . . Machines Sabotaged . | . . . . Overloaded Fab Kills . | . . . . Hacking | -11 -10 -10 -7 --------- Run | Yrd Mat Sub Scr Machines Accessed 11 | . 1 . 10 Terminals 1 | . 1 . . Fabricators . | . . . . Repair Stations . | . . . . Recycling Units . | . . . . Scanalyzers . | . . . . Garrison Access . | . . . . Total Hacks 72 | . 2 . 70 Successful 71 | . 1 . 70 Failed 1 | . 1 . . Catastrophic . | . . . . Database Lockouts . | . . . . Manual . | . . . . Terminals 2 | . 2 . . Fabricators . | . . . . Repair Stations . | . . . . Recycling Units . | . . . . Scanalyzers . | . . . . Garrison Access . | . . . . Terminal Hacks 71 | . 1 . 70 Record 62 | . . . 62 Robot Analysis 8 | . . . 8 Prototype ID Bank 1 | . 1 . . Fabricator Hacks . | . . . . Repair Station Hacks . | . . . . Recycling Unit Hacks . | . . . . Scanalyzer . | . . . . Garrison Access Hacks . | . . . . Unauthorized Hacks . | . . . . Terminals . | . . . . Fabricators . | . . . . Repair Stations . | . . . . Recycling Units . | . . . . Scanalyzers . | . . . . Garrison Access . | . . . . Data Cores Recovered . | . . . . Used . | . . . . Hacking Detections 1 | . 1 . . Full Trace Events . | . . . . Feedback Events . | . . . . Feedback Blocked . | . . . . Robot Schematics Acquired . | . . . . Robots Built . | . . . . Authchips . | . . . . Time . | . . . . Total Robot Build Rating . | . . . . Part Schematics Acquired . | . . . . Parts Built . | . . . . Authchips . | . . . . Time . | . . . . Total Part Build Rating . | . . . . Part Studies Acquired . | . . . . Parts Repaired . | . . . . Time . | . . . . Parts Recycled . | . . . . Recycled Matter . | . . . . Retrieved Matter . | . . . . Retrieved Components . | . . . . Parts Scanalyzed . | . . . . Part Schematics Acquired . | . . . . Parts Damaged . | . . . . Bothacking | -11 -10 -10 -7 ------------ Run | Yrd Mat Sub Scr Used RIF Installer . | . . . . Robots Hacked . | . . . . Non-combat . | . . . . Combat . | . . . . Robot Hacks Applied . | . . . . Relay Couplers Released . | . . . . Fabnet Peak Effective % . | . . . . Robots Rewired . | . . . . Allies Hacked . | . . . . Hacks Repelled . | . . . . Allies | -11 -10 -10 -7 -------- Run | Yrd Mat Sub Scr Total Allies . | . . . . Largest Group . | . . . . Highest-Rated Group . | . . . . Highest-Rated Ally . | . . . . Total Orders . | . . . . Ally Attacks . | . . . . Total Damage . | . . . . Kills . | . . . . Allies Corrupted . | . . . . Allies Melted 6 | . . . 6 Intel | -11 -10 -10 -7 ------- Run | Yrd Mat Sub Scr Active Infowar (turns) . | . . . . Robot Analysis Total 8 | . . . 8 Derelict Logs Recovered 5 | . . 1 4 Drone Launches . | . . . . Drone Recoveries . | . . . . Exploration | -11 -10 -10 -7 ------------- Run | Yrd Mat Sub Scr Turns Passed 12516 | 55 593 2243 9625 Spaces Moved 2098 | 39 141 353 1565 Core 6 | 6 . . . Treads . | . . . . Legs 2092 | 33 141 353 1565 Wheels . | . . . . Hover . | . . . . Flight . | . . . . Fastest Speed 50 | 50 120 610 330 Average Speed 584 | 109 404 610 607 Slowest Speed 610 | 120 610 610 610 Overloaded Moves . | . . . . Propulsion Burnouts . | . . . . Robots Hopped . | . . . . Potential Cave-ins . | . . . . Cave-ins Triggered . | . . . . Exploration Rate (%) 35 | 4 25 30 82 Regions Visited 3 Branch Regions 2 Pre-discovered Areas 1 | . . . 1 Known Exits Taken . | . . . . Unknown Exits Taken 3 | 1 1 1 . Scrap Searched 4 | . . 1 3 Spaces Dug 10 | . . 10 . Terrain Destroyed 69 | . 30 31 8 Melee . | . . . . Projectile . | . . . . AOE 69 | . 30 31 8 Terrain Rammed . | . . . . Walls Destroyed . | . . . . Machines Disabled . | . . . . Actions | -11 -10 -10 -7 --------- Run | Yrd Mat Sub Scr Total 2326 | 51 166 426 1683 Wait 65 | . 2 8 55 Move 2095 | 38 140 352 1565 Hop . | . . . . Pick Up 54 | 7 13 21 13 Fast Attach 1 | . . . 1 Attach 25 | 6 3 7 9 Detach 12 | . 2 6 4 Swap 2 | . . . 2 Drop 26 | . 2 3 21 Fire 46 | . 4 29 13 Melee . | . . . . Ram . | . . . . Kick . | . . . . Crush . | . . . . Escape Stasis . | . . . . Rewire . | . . . . Trap . | . . . . Miscellaneous . | . . . . Route ------- -11/Scrapyard -10/Materials -10/Subcaves (discovered 3 exits: [*Mat] / *Scr x2) -7/Scraptown (discovered 2 exits: [*Fac x2]) History --------- Turn | Location | Event 8 | -11/Scrapyard | Discovered new exit (range 14) 56 | -11/Scrapyard | Entered Materials 57 | -10/Materials | Met a group of wandering Federalists 232 | -10/Materials | Discovered new exit (range 9) 426 | -10/Materials | Build established: Hauler-Mutant 649 | -10/Materials | Entered Subcaves 650 | -10/Subcaves | Continued accompanying wandering Federalists (6) 650 | -10/Subcaves | Approached by a straggling Scientist 667 | -10/Subcaves | Ambushed by Subdweller buried in earth 762 | -10/Subcaves | Ambushed by Subdweller buried in earth 1026 | -10/Subcaves | Core integrity fell below 50% 1241 | -10/Subcaves | Shifting Twisted Machinery released Shrapnel Trap 2430 | -10/Subcaves | Discovered new exit (range 7) 2460 | -10/Subcaves | Learned 2 Materials zone layouts 2831 | -10/Subcaves | Scientist uncovered a shortcut to Scraptown 2892 | -10/Subcaves | Entered Scraptown 6289 | -7/Scraptown | Visited UFD Registry 6289 | -7/Scraptown | Registered with UFD as "Nukeskull" 6527 | -7/Scraptown | Visited SPCMW 6784 | -7/Scraptown | Visited Bundlers 7005 | -7/Scraptown | Visited Awakened 7514 | -7/Scraptown | Visited Comm Corps 7984 | -7/Scraptown | Scanned Subdweller tech in exchange for log data 8002 | -7/Scraptown | Learned location of Warlord (-5) 8009 | -7/Scraptown | Learned location of 1 exit from Research 8015 | -7/Scraptown | Learned Factory terminal intel 8027 | -7/Scraptown | Learned Factory garrison access intel 8106 | -7/Scraptown | Discovered new exit (range 13) 8253 | -7/Scraptown | Guru changed UFD alias to "Ioncircuit" 8981 | -7/Scraptown | Visited Cyclists 9079 | -7/Scraptown | Entered Cyclist Reading Room 9560 | -7/Scraptown | Visited Abandonware Association 9945 | -7/Scraptown | Learned abandonware demo "MELTYB.EXE" 10091 | -7/Scraptown | Visited Junk Repository 10444 | -7/Scraptown | Discovered new exit (range 3) 10585 | -7/Scraptown | Found Scrap Suit 11034 | -7/Scraptown | Visited Analyses Database 11229 | -7/Scraptown | Visited Scrap Suit Storage 11522 | -7/Scraptown | Visited Junk Repository 11886 | -7/Scraptown | Met Optimus 11886 | -7/Scraptown | Accepted into 0bPrime 12286 | -7/Scraptown | Civil war broke out across Scraptown 12400 | -7/Scraptown | Lost 13 allies 12505 | -7/Scraptown | Core integrity fell below 20% 12517 | -7/Scraptown | Destroyed by AV-QD3(j) with Overtuned Pulse Rifle Last Messages --------------- 12464_ The unstable cave ceiling collapses. 12469_ Acquired Ovr. Titanium Leg. 12478_ Acquired Lgt. Nuclear Core. 12479_ N9-H89(x) destroyed. 12486_ L2-4I4(x) switches sides: "Sorry everyone but I think they're right!" 12488_ 40-L9J(j) destroyed. 12491_ L2-4I4(x) destroyed. 12501_ Destroyed Mak. Salvage Targeting Computer. 12504_ Critical hit (Burn: +50). 12505_ Sub. Machine Gun shoots sparks and powers down. 12507_ CX-BT7(j) destroyed. 12507_ Dropped Broken Sub. Machine Gun. 12509_ 21-MFS(j) cannibalizes Lgt. Angular Momentum Engine to repair Lgt. Deuterium Engine. 12510_ Critical hit (Burn: +50). 12512_ The unstable cave ceiling collapses. Map ----- +----------------------------------------------------+ | ?????????????#######?# #????????????????????????? | | ?????????????" !"#?# #????????????????????????? | | ?????????????#" "#?# #????????????????????????? | | ??????????####X ##?# #????????????????????????? | | ??????????#" !"#?# ##########???????????????? | | ?#####?##?#"! !"#?# #""""""""#???????????????? | | ?# !# !#?#"! "#?# #" X " ""#???????????????? | | ?#!!!#]!#?#"! !"#?# #" ""#???????????????? | | # # #?#" "#?# #"" """#???????????????? | | #?## ##?# # #???????????????? | | ?? & ???# #?# # #???????????????? | | ???# #????###### ###?# #; #######???????????????? | | #### ########### ##### #; #########?????????????? | | """" """"""""""" """""j " "## ][!#?????????????? | | %= = ## !#?????????????? | | ![*%[=j=!*"## ####?????????????? | | !!!*=%*%[%"## =#?????????????? | | = !*!"## [!#?????????????? | | ! [#?????????????? | | """""""""""""""""""""" %[ "## ####?????????????? | | """"""""""""""""""""" * "## |&] #?????????????? | | ## ################""= "## #?????????????? | | ##????????#""% ########?????????????? | | X"#????????#"" "#?? """"????????????? | | "" "" ##????????#""=* !["#? " " ?????????? | | " "" X"#?????####""%!%@%!## &"????????? | | " ########]=# !! !! % = &"????????? | | "" [ [ [|*|%!%= ![!%*%%* &"????????? | | "" !=!** g =!!!=*!%= !=[*= ""????????? | | " =#######;;%; [[ " " " "????????? | | " "" ""#????##### ![ ## """""???????????? | | "" "" ##????????# =! ########?????????????? | | X"#????????# =%*[* #???????????????????? | | ##????????# %!!/%= ##???????????????????? | | ## ######?????????# !%[!! #????????????????????? | | """""""???????????""" !%= "#????????????????????? | | """"""""?????????""""!%!* ???????????????????? | | ???????? !=[[[ % ## ?????????????????? | | ??????? ![%% ["#?? ?????????????????? | | ??????= !=%[[=% #???"????????????????? | | ??????%* *=!%!!!= #????????????????????? | | ???????! =!%!=*%%[! ????????????????????? | | """""" "????????"" ![*!*!!##???????????????????? | | ?####? ??????????# #"[=#=%=!#????????????????????? | | ????????????????? ?=!!!!????????????????????? | | ??????????????????? # ?![%%#????????????????????? | | ???????????????????? ? ?#==??????????????????????? | | ?????????????????????????????????????????????????? | | ?????????????????????????????????????????????????? | | ?????????????????????????????????????????????????? | +----------------------------------------------------+ Best States ------------- Heat Dissipation 25 Energy Generation 16 Energy Capacity 290 Matter Stores 300 Matter Capacity 300 Sight Range 16 Terrain Scan Density 10 Resistance: KI 20 Resistance: TH 20 Resistance: EX 20 Resistance: EM 20 Resistance: I 20 Resistance: S 20 Resistance: P 20 Evasion (%) 55 Targeting Accuracy 5 Offensive Hacking 10 Item Schematics ----------------- None Robot Schematics ------------------ None Fabricated ------------ Nothing Repaired ---------- Nothing Studied --------- None Alien Tech Used ----------------- None Achievements -------------- Armchair Analyst Bob, First Of His Name Civilization 2243 Do Not Disturb Link The Feds Longdome?! Nice Directions, Buddy Packrat Plot Armor Strength In Numbers Tank Challenges ------------ None Game ------ Seed OvertunedThermicStick Manual? 0 Play Time 01:10:31 Cumulative 10.7 hours Start 2026.02.13 @ 18:16:45 End 2026.02.13 @ 20:03:02 Sessions 1 Manual Loads 0 Difficulty Adventurer Special Mode None Game No. 9 Rogue 0 Adventurer 9 Explorer 0 Win Type - Total 0 Types 0/0/0/0/0/0/0/0/0/0 Lore% 11 Gallery% 13 Achievement% 14 Wizard Run 0 Options --------- Layout 1 ASCII 0 Keyboard 0 Movement Arrows Keybinds 0 Fullscreen 1 Font 24/Smallcaps Map View 50x35 Zoom Use 0% Tactical HUD 1 Map Filters NONE Filters NONE Steam 1 RUN: ec734c97-6284-4621-93ec-d7abd58fc4bd